fUSD/lending_fUSD_20240712
["ID","MTS","AMOUNT","RATE_DAILY","PERIOD"]
[331764947,1720755084412,-500.0,0.00013901,2]
[331764948,1720755084421,-500.0,0.00013901,2]
[331764949,1720755084430,-500.0,0.00013901,2]
[331764950,1720755084439,-500.0,0.00013901,2]
[331764951,1720755084448,-500.0,0.00013901,2]
[331764952,1720755084457,-500.0,0.00013901,2]
[331764953,1720755084466,-224.40823018,0.00013901,2]
[331764954,1720755084475,-500.0,0.00013901,2]
[331764955,1720755084484,-500.0,0.00013901,2]
[331764956,1720755084493,-500.0,0.00013901,2]
[331764957,1720755084502,-602.51398459,0.00013901,2]
[331764958,1720755084513,-500.0,0.00013901,2]
[331764959,1720755084522,-500.0,0.00013901,2]
[331764960,1720755084531,-500.0,0.00013901,2]
[331764961,1720755084540,-500.0,0.00013901,2]
[331764962,1720755084549,-500.0,0.00013901,2]
[331764963,1720755084559,-556.0,0.00013901,2]
[331764964,1720755084568,-500.0,0.00013901,2]
[331764965,1720755084578,-500.0,0.00013901,2]
[331764966,1720755084587,-500.0,0.00013901,2]
[331764967,1720755084596,-500.0,0.00013901,2]
[331764968,1720755084606,-500.0,0.00013901,2]
[331764969,1720755084615,-500.0,0.00013901,2]
[331764970,1720755084623,-1148.25,0.00013901,2]
[331764971,1720755084633,-500.0,0.00013901,2]
[331764972,1720755084642,-500.0,0.00013901,2]
[331764973,1720755084651,-500.0,0.00013901,2]
[331764974,1720755084660,-814.75,0.00013901,2]
[331764975,1720755084669,-500.0,0.00013901,2]
[331764976,1720755084678,-500.0,0.00013901,2]
[331764977,1720755084688,-500.0,0.00013901,2]
[331764978,1720755084697,-500.0,0.00013901,2]
[331764979,1720755084706,-500.0,0.00013901,2]
[331764980,1720755084715,-500.0,0.00013901,2]
[331764981,1720755084724,-356.72718074,0.00013901,2]
[331764982,1720755084733,-500.0,0.00013901,2]
[331764983,1720755084743,-896.57,0.00013901,2]
[331764984,1720755084752,-500.0,0.00013901,2]
[331764985,1720755084765,-500.0,0.00013901,2]
[331764986,1720755084774,-500.0,0.00013901,2]
[331764987,1720755084783,-500.0,0.00013901,2]
[331764988,1720755084791,-500.0,0.00013901,2]
[331764989,1720755084803,-500.0,0.00013902,2]
[331764990,1720755084812,-500.0,0.00013902,2]
[331764991,1720755084821,-500.0,0.00013902,2]
[331764992,1720755084830,-500.0,0.00013902,2]
[331764993,1720755084839,-500.0,0.00013902,2]
[331764994,1720755084848,-500.0,0.00013902,2]
[331764995,1720755084857,-500.0,0.00013902,2]
[331764996,1720755084866,-500.0,0.00013902,2]
[331764997,1720755084876,-500.0,0.00013902,2]
[331764998,1720755084885,-500.0,0.00013902,2]
[331764999,1720755084894,-500.0,0.00013902,2]
[331765000,1720755084903,-500.0,0.00013902,2]
[331765001,1720755084912,-500.0,0.00013902,2]
[331765002,1720755084921,-500.0,0.00013902,2]
[331765003,1720755084931,-500.0,0.00013902,2]
[331765004,1720755084940,-500.0,0.00013902,2]
[331765005,1720755084950,-500.0,0.00013902,2]
[331765006,1720755084959,-500.0,0.00013902,2]
[331765007,1720755084968,-500.0,0.00013902,2]
[331765008,1720755084978,-500.0,0.00013902,2]
[331765009,1720755084987,-500.0,0.00013902,2]
[331765010,1720755084997,-500.0,0.00013902,2]
[331765011,1720755085007,-500.0,0.00013902,2]
[331765012,1720755085021,-500.0,0.00013902,2]
[331765013,1720755085030,-500.0,0.00013902,2]
[331765014,1720755085040,-500.0,0.00013902,2]
[331765015,1720755085049,-538.04,0.00013902,2]
[331765016,1720755085059,-658.7,0.00013902,2]
[331765017,1720755085068,-500.0,0.00013902,2]
[331765018,1720755085077,-500.0,0.00013902,2]
[331765019,1720755085086,-602.31057716,0.00013902,2]
[331765020,1720755085095,-500.0,0.00013902,2]
[331765021,1720755085104,-500.0,0.00013902,2]
[331765022,1720755085114,-500.0,0.00013902,2]
[331765023,1720755085123,-500.0,0.00013902,2]
[331765024,1720755085132,-500.0,0.00013902,2]
[331765025,1720755085142,-500.0,0.00013902,2]
[331765026,1720755085151,-500.0,0.00013902,2]
[331765027,1720755085160,-500.0,0.00013902,2]
[331765028,1720755085169,-500.0,0.00013902,2]
[331765029,1720755085179,-500.0,0.00013902,2]
[331765030,1720755085188,-500.0,0.00013902,2]
[331765031,1720755085198,-500.0,0.00013902,2]
[331765032,1720755085209,-500.0,0.00013902,2]
[331765033,1720755085219,-500.0,0.00013902,2]
[331765034,1720755085228,-500.0,0.00013902,2]
[331765035,1720755085238,-500.0,0.00013902,2]
[331765036,1720755085247,-500.0,0.00013902,2]
[331765037,1720755085257,-500.0,0.00013902,2]
[331765038,1720755085267,-500.0,0.00013902,2]
[331765039,1720755085278,-500.0,0.00013902,2]
[331765040,1720755085287,-500.0,0.00013902,2]
[331765041,1720755085296,-500.0,0.00013902,2]
[331765042,1720755085305,-500.0,0.00013902,2]
[331765043,1720755085314,-500.0,0.00013902,2]
[331765044,1720755085323,-500.0,0.00013902,2]
[331765045,1720755085333,-500.0,0.00013902,2]
[331765046,1720755085342,-500.0,0.00013902,2]
[331765047,1720755085351,-500.0,0.00013902,2]
[331765048,1720755085360,-564.59,0.00013902,2]
[331765049,1720755085369,-626.09,0.00013902,2]
[331765050,1720755085378,-500.0,0.00013902,2]
[331765051,1720755085387,-500.0,0.00013902,2]
[331765052,1720755085397,-500.0,0.00013902,2]
[331765053,1720755085406,-500.0,0.00013902,2]
[331765054,1720755085415,-500.0,0.00013902,2]
[331765055,1720755085424,-500.0,0.00013902,2]
[331765056,1720755085433,-500.0,0.00013902,2]
[331765057,1720755085442,-500.0,0.00013902,2]
[331765058,1720755085451,-649.58,0.00013902,2]
[331765059,1720755085461,-500.0,0.00013902,2]
[331765060,1720755085470,-500.0,0.00013902,2]
[331765061,1720755085479,-500.0,0.00013902,2]
[331765062,1720755085489,-547.49,0.00013902,2]
[331765063,1720755085499,-518.91,0.00013902,2]
[331765064,1720755085508,-500.0,0.00013902,2]
[331765065,1720755085517,-500.0,0.00013902,2]
[331765066,1720755085527,-500.0,0.00013902,2]
[331765067,1720755085536,-500.0,0.00013902,2]
[331765068,1720755085546,-500.0,0.00013902,2]
[331765069,1720755085555,-500.0,0.00013902,2]
[331765070,1720755085564,-500.0,0.00013902,2]
[331765071,1720755085573,-500.0,0.00013902,2]
[331765072,1720755085582,-500.0,0.00013902,2]
[331765073,1720755085591,-500.0,0.00013902,2]
[331765074,1720755085600,-500.0,0.00013902,2]
[331765075,1720755085609,-500.0,0.00013902,2]
[331765076,1720755085619,-500.0,0.00013902,2]
[331765077,1720755085637,-500.0,0.00013902,2]
[331765078,1720755085655,-500.0,0.00013902,2]
[331765079,1720755085672,-500.0,0.00013907,2]
[331765080,1720755085690,-500.0,0.00013954,2]
[331765081,1720755085710,-876.79,0.00013954,2]
[331765082,1720755085728,-500.0,0.00013954,2]
[331765083,1720755085745,-500.0,0.00013954,2]
[331765084,1720755085761,-500.0,0.00013954,2]
[331765085,1720755085775,-500.0,0.00013954,2]
[331765086,1720755085794,-500.0,0.00013954,2]
[331765087,1720755085811,-500.0,0.00013954,2]
[331765088,1720755085828,-500.0,0.00013954,2]
[331765089,1720755085840,-632.4,0.00013954,2]
[331765090,1720755085857,-500.0,0.00013954,2]
[331765091,1720755085872,-500.0,0.00013954,2]
[331765092,1720755085888,-626.16,0.00013954,2]
[331765093,1720755085901,-485.9470183,0.00013954,2]
[331765094,1720755085915,-1021.3,0.00013954,2]
[331765095,1720755085929,-758.96,0.00013954,2]
[331765096,1720755085943,-500.0,0.00013954,2]
[331765097,1720755085956,-500.0,0.00013954,2]
[331765098,1720755085970,-500.0,0.00013954,2]
[331765099,1720755085983,-500.0,0.00013954,2]
[331765100,1720755085997,-500.0,0.00013954,2]
[331765101,1720755086011,-443.72350758,0.00013954,2]
[331765102,1720755086025,-939.45,0.00013954,2]
[331765103,1720755086038,-500.0,0.00013954,2]
[331765104,1720755086052,-629.18,0.00013954,2]
[331765105,1720755086066,-500.0,0.00013954,2]
[331765106,1720755086080,-733.39,0.00013954,2]
[331765107,1720755086095,-1420.82,0.00013954,2]
[331765108,1720755086110,-500.0,0.00013954,2]
[331765109,1720755086124,-643.89,0.00013954,2]
[331765110,1720755086140,-500.0,0.00013954,2]
[331765111,1720755086154,-1000.0,0.00013954,2]
[331765112,1720755086170,-500.0,0.00013954,2]
[331765113,1720755086184,-1535.75,0.00013954,2]
[331765114,1720755086200,-500.0,0.00013954,2]
[331765115,1720755086214,-629.04,0.00013954,2]
[331765116,1720755086232,-500.0,0.00013954,2]
[331765117,1720755086249,-500.0,0.00013954,2]
[331765118,1720755086264,-212.6,0.00013954,2]
[331765119,1720755086279,-769.06,0.00013954,2]
[331765120,1720755086294,-500.0,0.00013954,2]
[331765121,1720755086307,-500.0,0.00013954,2]
[331765122,1720755086321,-500.0,0.00013954,2]
[331765123,1720755086335,-885.42,0.00013954,2]
[331765124,1720755086351,-842.38,0.00013954,2]
[331765125,1720755086366,-500.0,0.00013954,2]
[331765126,1720755086381,-571.48,0.00013954,2]
[331765127,1720755086394,-1710.8,0.00013954,2]
[331765128,1720755086409,-605.77,0.00013954,2]
[331765129,1720755086423,-1281.49,0.00013954,2]
[331765130,1720755086436,-500.0,0.00013954,2]
[331765131,1720755086450,-500.0,0.00013954,2]
[331765132,1720755086463,-500.0,0.00013954,2]
[331765133,1720755086477,-500.0,0.00013954,2]
[331765134,1720755086492,-500.0,0.00013954,2]
[331765135,1720755086510,-513.87,0.00013954,2]
[331765136,1720755086524,-452.31,0.00013954,2]
[331765137,1720755086537,-500.0,0.00013954,2]
[331765138,1720755086551,-500.0,0.00013954,2]
[331765139,1720755086564,-705.38,0.00013954,2]
[331765140,1720755086579,-500.0,0.00013954,2]
[331765141,1720755086593,-631.38,0.00013954,2]
[331765142,1720755086607,-1168.67,0.00013954,2]
[331765143,1720755086622,-959.77,0.00013954,2]
[331765144,1720755086636,-1535.62,0.00013954,2]
[331765145,1720755086650,-756.35,0.00013954,2]
[331765146,1720755086664,-1288.12,0.00013954,2]
[331765147,1720755086677,-500.0,0.00013954,2]
[331765148,1720755086691,-500.0,0.00013954,2]
[331765149,1720755086706,-500.0,0.00013954,2]
[331765150,1720755086723,-500.0,0.00013954,2]
[331765151,1720755086737,-500.0,0.00013954,2]
[331765152,1720755086754,-1013.73,0.00013954,2]
[331765153,1720755086770,-500.0,0.00013954,2]
[331765154,1720755086784,-500.0,0.00013954,2]
[331765155,1720755086799,-946.68,0.00013954,2]
[331765156,1720755086813,-500.0,0.00013954,2]
[331765157,1720755086827,-653.64,0.00013954,2]
[331765158,1720755086842,-244.92,0.00013954,2]
[331765159,1720755086857,-500.0,0.00013954,2]
[331765160,1720755086871,-500.0,0.00013954,2]
[331765161,1720755086885,-500.0,0.00013954,2]
[331765162,1720755086901,-1062.53,0.00013954,2]
[331765163,1720755086916,-901.49,0.00013954,2]
[331765164,1720755086931,-1837.49,0.00013954,2]
[331765165,1720755086946,-783.22,0.00013954,2]
[331765166,1720755086961,-500.0,0.00013954,2]
[331765167,1720755086975,-948.74,0.00013954,2]
[331765168,1720755086990,-500.0,0.00013954,2]
[331765169,1720755087005,-752.71,0.00013954,2]
[331765170,1720755087020,-500.0,0.00013954,2]
[331765171,1720755087034,-941.72,0.00013954,2]
[331765172,1720755087047,-556.12,0.00013954,2]
[331765173,1720755087064,-809.89,0.00013954,2]
[331765174,1720755087079,-1253.15,0.00013954,2]
[331765175,1720755087093,-500.0,0.00013954,2]
[331765176,1720755087106,-500.0,0.00013954,2]
[331765177,1720755087121,-791.65,0.00013954,2]
[331765178,1720755087135,-500.0,0.00013954,2]
[331765179,1720755087149,-1936.1,0.00013954,2]
[331765180,1720755087161,-500.0,0.00013954,2]
[331765181,1720755087174,-814.48,0.00013954,2]
[331765182,1720755087188,-898.13,0.00013954,2]
[331765183,1720755087203,-654.05,0.00013954,2]
[331765184,1720755087216,-1338.31,0.00013954,2]
[331765185,1720755087228,-500.0,0.00013954,2]
[331765186,1720755087242,-500.0,0.00013954,2]
[331765187,1720755087255,-500.0,0.00013954,2]
[331765188,1720755087269,-500.0,0.00013954,2]
[331765189,1720755087283,-719.82,0.00013954,2]
[331765190,1720755087296,-500.0,0.00013954,2]
[331765191,1720755087310,-500.0,0.00013954,2]
[331765192,1720755087323,-500.0,0.00013954,2]
[331765193,1720755087336,-500.0,0.00013954,2]
[331765194,1720755087349,-536.41,0.00013954,2]
[331765195,1720755087363,-500.0,0.00013954,2]
[331765196,1720755087378,-665.86,0.00013954,2]
[331765197,1720755087393,-702.65,0.00013954,2]
[331765198,1720755087408,-1374.83,0.00013954,2]
[331765199,1720755087420,-612.99,0.00013954,2]
[331765200,1720755087430,-500.0,0.00013954,2]
[331765201,1720755087441,-500.0,0.00013954,2]
[331765202,1720755087451,-500.0,0.00013954,2]
[331765203,1720755087461,-549.03,0.00013954,2]
[331765204,1720755087471,-500.0,0.00013954,2]
[331765205,1720755087481,-500.0,0.00013954,2]
[331765206,1720755087491,-654.23,0.00013954,2]
[331765207,1720755087500,-1466.21,0.00013954,2]
[331765208,1720755087510,-500.0,0.00013954,2]
[331765209,1720755087519,-1023.29,0.00013954,2]
[331765210,1720755087530,-500.0,0.00013954,2]
[331765211,1720755087540,-219.46,0.00013954,2]
[331765212,1720755087550,-1110.63,0.00013954,2]
[331765213,1720755087560,-270.52,0.00013954,2]
[331765214,1720755087569,-1065.5,0.00013954,2]
[331765215,1720755087580,-476.70713998,0.00013954,2]
[331765216,1720755087903,-500.0,0.00013954,2]
[331765217,1720755087925,-2426.46,0.00013954,2]
[331765218,1720755087944,-637.05,0.00013954,2]
[331765219,1720755087960,-423.02,0.00013954,2]
[331765220,1720755087970,-518.53,0.00013954,2]
[331765221,1720755087981,-500.0,0.00013954,2]
[331765222,1720755087991,-500.0,0.00013954,2]
[331765223,1720755088001,-518.62403597,0.00013954,2]
[331765224,1720755088012,-6648.52,0.00013954,2]
[331765225,1720755088021,-500.0,0.00013954,2]
[331765226,1720755088031,-1130.68,0.00013954,2]
[331765227,1720755088041,-500.0,0.00013954,2]
[331765228,1720755088051,-704.1,0.00013954,2]
[331765229,1720755088060,-500.0,0.00013954,2]
[331765230,1720755088070,-1156.78,0.00013954,2]
[331765231,1720755088080,-1223.72,0.00013954,2]
[331765232,1720755088089,-973.68,0.00013954,2]
[331765233,1720755088099,-1028.39,0.00013954,2]
[331765234,1720755088108,-500.0,0.00013954,2]
[331765235,1720755088118,-562.76,0.00013954,2]
[331765236,1720755088127,-3388.51,0.00013954,2]
[331765237,1720755088135,-614.57,0.00013954,2]
[331765238,1720755088144,-590.55,0.00013954,2]
[331765239,1720755088154,-863.37,0.00013954,2]
[331765240,1720755088164,-1231.54,0.00013954,2]
[331765241,1720755088173,-500.0,0.00013954,2]
[331765242,1720755088183,-693.52,0.00013954,2]
[331765243,1720755088193,-500.0,0.00013954,2]
[331765244,1720755088205,-1220.39,0.00013954,2]
[331765245,1720755088215,-700.46,0.00013954,2]
[331765246,1720755088226,-596.81,0.00013954,2]
[331765247,1720755088235,-758.84,0.00013954,2]
[331765248,1720755088246,-1270.41,0.00013954,2]
[331765249,1720755088256,-511.86,0.00013954,2]
[331765250,1720755088267,-898.66,0.00013954,2]
[331765251,1720755088278,-755.39,0.00013954,2]
[331765252,1720755088289,-500.0,0.00013954,2]
[331765253,1720755088299,-500.0,0.00013954,2]
[331765254,1720755088309,-586.99,0.00013954,2]
[331765255,1720755088319,-770.69,0.00013954,2]
[331765256,1720755088328,-500.0,0.00013954,2]
[331765257,1720755088338,-500.0,0.00013954,2]
[331765258,1720755088348,-500.0,0.00013954,2]
[331765259,1720755088357,-1183.61,0.00013954,2]
[331765260,1720755088367,-500.0,0.00013954,2]
[331765261,1720755088376,-500.0,0.00013954,2]
[331765262,1720755088386,-547.76,0.00013954,2]
[331765263,1720755088396,-500.0,0.00013954,2]
[331765264,1720755088406,-500.0,0.00013954,2]
[331765265,1720755088415,-500.0,0.00013954,2]
[331765266,1720755088425,-813.38,0.00013954,2]
[331765267,1720755088435,-500.0,0.00013954,2]
[331765268,1720755088444,-500.0,0.00013954,2]
[331765269,1720755088453,-500.0,0.00013954,2]
[331765270,1720755088463,-1624.91,0.00013954,2]
[331765271,1720755088472,-500.0,0.00013954,2]
[331765272,1720755088482,-500.0,0.00013954,2]
[331765273,1720755088491,-762.29,0.00013954,2]
[331765274,1720755088501,-500.0,0.00013954,2]
[331765275,1720755088512,-680.36,0.00013954,2]
[331765276,1720755088522,-500.0,0.00013954,2]
[331765277,1720755088531,-572.74,0.00013954,2]
[331765278,1720755088541,-237.15,0.00013954,2]
[331765279,1720755088551,-795.1,0.00013954,2]
[331765280,1720755088562,-948.19,0.00013954,2]
[331765281,1720755088572,-726.81,0.00013954,2]
[331765282,1720755088581,-500.0,0.00013954,2]
[331765283,1720755088591,-500.0,0.00013954,2]
[331765284,1720755088600,-917.22,0.00013954,2]
[331765285,1720755088610,-500.0,0.00013954,2]
[331765286,1720755088621,-577.39,0.00013954,2]
[331765287,1720755088632,-1881.81,0.00013954,2]
[331765288,1720755088641,-500.0,0.00013954,2]
[331765289,1720755088651,-926.47,0.00013954,2]
[331765290,1720755088661,-500.0,0.00013954,2]
[331765291,1720755088671,-850.81,0.00013954,2]
[331765292,1720755088681,-911.15,0.00013954,2]
[331765293,1720755088691,-1000.32,0.00013954,2]
[331765294,1720755088701,-1550.97,0.00013954,2]
[331765295,1720755088710,-826.45,0.00013954,2]
[331765296,1720755088720,-500.0,0.00013954,2]
[331765297,1720755088731,-654.85,0.00013954,2]
[331765298,1720755088741,-756.77,0.00013954,2]
[331765299,1720755088751,-500.0,0.00013954,2]
[331765300,1720755088762,-1033.37,0.00013954,2]
[331765301,1720755088772,-1955.18,0.00013954,2]
[331765302,1720755088781,-500.0,0.00013954,2]
[331765303,1720755088792,-500.0,0.00013954,2]
[331765304,1720755088801,-701.95,0.00013954,2]
[331765305,1720755088812,-705.01,0.00013954,2]
[331765306,1720755088821,-500.0,0.00013954,2]
[331765307,1720755088831,-1093.78,0.00013954,2]
[331765308,1720755088840,-500.0,0.00013954,2]
[331765309,1720755088850,-533.29,0.00013954,2]
[331765310,1720755088859,-500.0,0.00013954,2]
[331765311,1720755088869,-2077.64,0.00013954,2]
[331765312,1720755088879,-637.8,0.00013954,2]
[331765313,1720755088888,-500.0,0.00013954,2]
[331765314,1720755088898,-946.41,0.00013954,2]
[331765315,1720755088908,-1453.74,0.00013954,2]
[331765316,1720755088918,-928.94,0.00013954,2]
[331765317,1720755088928,-1955.83,0.00013954,2]
[331765318,1720755088938,-835.39,0.00013954,2]
[331765319,1720755088949,-500.0,0.00013954,2]
[331765320,1720755088959,-819.95,0.00013954,2]
[331765321,1720755088968,-980.15,0.00013954,2]
[331765322,1720755088978,-1194.33,0.00013954,2]
[331765323,1720755088987,-594.54,0.00013954,2]
[331765324,1720755088996,-690.35,0.00013954,2]
[331765325,1720755089005,-500.0,0.00013954,2]
[331765326,1720755089016,-789.4,0.00013954,2]
[331765327,1720755089026,-1391.74,0.00013954,2]
[331765328,1720755089037,-625.68,0.00013954,2]
[331765329,1720755089047,-1478.44,0.00013954,2]
[331765330,1720755089056,-500.0,0.00013954,2]
[331765331,1720755089066,-639.93,0.00013954,2]
[331765332,1720755089076,-5588.81,0.00013954,2]
[331765333,1720755089086,-500.0,0.00013954,2]
[331765334,1720755089096,-1267.28,0.00013954,2]
[331765335,1720755089106,-500.0,0.00013954,2]
[331765336,1720755089116,-500.0,0.00013954,2]
[331765337,1720755089126,-500.0,0.00013954,2]
[331765338,1720755089136,-500.0,0.00013954,2]
[331765339,1720755089146,-500.0,0.00013954,2]
[331765340,1720755089156,-500.0,0.00013954,2]
[331765341,1720755089166,-500.0,0.00013954,2]
[331765342,1720755089176,-529.75,0.00013954,2]
[331765343,1720755089186,-500.0,0.00013954,2]
[331765344,1720755089199,-174.56482998,0.00013954,2]
[331765345,1720755089210,-500.0,0.00013954,2]
[331765346,1720755089220,-500.0,0.00013954,2]
[331765347,1720755089230,-811.9,0.00013954,2]
[331765348,1720755089240,-500.0,0.00013954,2]
[331765349,1720755089249,-514.04,0.00013954,2]
[331765350,1720755089259,-2638.81,0.00013954,2]
[331765351,1720755089268,-1259.35,0.00013954,2]
[331765352,1720755089279,-500.0,0.00013954,2]
[331765353,1720755089289,-578.15,0.00013954,2]
[331765354,1720755089298,-500.0,0.00013954,2]
[331765355,1720755089308,-500.0,0.00013954,2]
[331765356,1720755089318,-500.0,0.00013954,2]
[331765357,1720755089328,-1322.72,0.00013954,2]
[331765358,1720755089337,-500.0,0.00013954,2]
[331765359,1720755089348,-500.0,0.00013954,2]
[331765360,1720755089358,-500.0,0.00013954,2]
[331765361,1720755089368,-500.0,0.00013954,2]
[331765362,1720755089379,-500.0,0.00013954,2]
[331765363,1720755089388,-500.0,0.00013954,2]
[331765364,1720755089398,-500.0,0.00013954,2]
[331765365,1720755089407,-500.0,0.00013954,2]
[331765366,1720755089417,-3420.08,0.00013954,2]
[331765367,1720755089426,-604.86,0.00013954,2]
[331765368,1720755089435,-680.68,0.00013954,2]
[331765369,1720755089445,-220230.94020382,0.00013955,2]
[331765370,1720755089455,-500.0,0.00013955,2]
[331765371,1720755089465,-500.0,0.00013955,2]
[331765372,1720755089474,-500.0,0.00013955,2]
[331765373,1720755089484,-500.0,0.00013955,2]
[331765374,1720755089493,-500.0,0.00013955,2]
[331765375,1720755089503,-500.0,0.00013955,2]
[331765376,1720755089513,-500.0,0.00013955,2]
[331765377,1720755089522,-500.0,0.00013955,2]
[331765378,1720755089532,-500.0,0.00013955,2]
[331765379,1720755089541,-500.0,0.00013955,2]
[331765380,1720755089551,-500.0,0.00013955,2]
[331765381,1720755089560,-500.0,0.00013955,2]
[331765382,1720755089570,-500.0,0.00013955,2]
[331765383,1720755089580,-500.0,0.00013955,2]
[331765384,1720755089589,-760.35,0.00013955,2]
[331765385,1720755089599,-500.0,0.00013955,2]
[331765386,1720755089608,-206.25,0.00013955,2]
[331765387,1720755089619,-500.0,0.00013955,2]
[331765388,1720755089629,-500.0,0.00013955,2]
[331765389,1720755089638,-214.59,0.00013955,2]
[331765390,1720755089647,-500.0,0.00013955,2]
[331765391,1720755089657,-229.08,0.00013955,2]
[331765392,1720755089666,-500.0,0.00013955,2]
[331765393,1720755089676,-500.0,0.00013955,2]
[331765394,1720755089685,-500.0,0.00013955,2]
[331765395,1720755089695,-500.0,0.00013955,2]
[331765396,1720755089704,-500.0,0.00013955,2]
[331765397,1720755089713,-500.0,0.00013955,2]
[331765398,1720755089724,-500.0,0.00013955,2]
[331765399,1720755089734,-500.0,0.00013955,2]
[331765400,1720755089743,-500.0,0.00013955,2]
[331765401,1720755089753,-500.0,0.00013955,2]
[331765402,1720755089762,-640.62,0.00013955,2]
[331765403,1720755089771,-500.0,0.00013955,2]
[331765404,1720755089780,-477.54,0.00013955,2]
[331765405,1720755089790,-500.0,0.00013955,2]
[331765406,1720755089800,-500.0,0.00013955,2]
[331765407,1720755089809,-500.0,0.00013955,2]
[331765408,1720755089818,-500.0,0.00013955,2]
[331765409,1720755089828,-588.74,0.00013955,2]
[331765410,1720755089838,-500.0,0.00013955,2]
[331765411,1720755089847,-500.0,0.00013955,2]
[331765412,1720755089857,-500.0,0.00013955,2]
[331765413,1720755089866,-500.0,0.00013955,2]
[331765414,1720755089875,-500.0,0.00013955,2]
[331765415,1720755089884,-500.0,0.00013955,2]
[331765416,1720755089894,-500.0,0.00013955,2]
[331765417,1720755089903,-434.28,0.00013955,2]
[331765418,1720755089912,-500.0,0.00013955,2]
[331765419,1720755089922,-500.0,0.00013955,2]
[331765420,1720755089933,-500.0,0.00013955,2]
[331765421,1720755089944,-500.0,0.00013955,2]
[331765422,1720755089954,-500.0,0.00013955,2]
[331765423,1720755089966,-657.13,0.00013955,2]
[331765424,1720755089975,-500.0,0.00013955,2]
[331765425,1720755089985,-500.0,0.00013955,2]
[331765426,1720755089995,-500.0,0.00013955,2]
[331765427,1720755090004,-640.36,0.00013955,2]
[331765428,1720755090014,-500.0,0.00013955,2]
[331765429,1720755090024,-502.4388371,0.00013955,2]
[331765430,1720755090034,-500.0,0.00013955,2]
[331765431,1720755090044,-500.0,0.00013955,2]
[331765432,1720755090053,-500.0,0.00013955,2]
[331765433,1720755090063,-500.0,0.00013955,2]
[331765434,1720755090072,-500.0,0.00013955,2]
[331765435,1720755090082,-500.0,0.00013955,2]
[331765436,1720755090092,-550.41462084,0.00013955,2]
[331765437,1720755090101,-500.0,0.00013955,2]
[331765438,1720755090111,-583.04,0.00013955,2]
[331765439,1720755090121,-401.75333283,0.00013955,2]
[331765440,1720755090131,-500.0,0.00013955,2]
[331765441,1720755090142,-827.38,0.00013955,2]
[331765442,1720755090153,-500.0,0.00013955,2]
[331765443,1720755090162,-500.0,0.00013955,2]
[331765444,1720755090172,-500.0,0.00013955,2]
[331765445,1720755090182,-500.0,0.00013955,2]
[331765446,1720755090191,-500.0,0.00013955,2]